fUST/lending_fUST_20250626
["ID","MTS","AMOUNT","RATE_DAILY","PERIOD"]
[367671398,1750891858085,-500.0,0.0002006,2]
[367671399,1750891858094,-494.75196346,0.0002006,2]
[367671400,1750891858103,-600.0,0.0002006,2]
[367671401,1750891858112,-500.0,0.0002006,2]
[367671402,1750891858121,-500.0,0.0002006,2]
[367671403,1750891858130,-500.0,0.0002006,2]
[367671404,1750891858139,-1000.0,0.00020077,2]
[367671405,1750891858148,-1062.48257286,0.00020077,2]
[367671406,1750891858157,-1000.0,0.00020077,2]
[367671407,1750891858166,-1000.0,0.00020077,2]
[367671408,1750891858175,-1000.0,0.00020077,2]
[367671409,1750891858184,-1000.0,0.00020077,2]
[367671410,1750891858193,-1000.0,0.00020077,2]
[367671411,1750891858202,-1050.64636519,0.00020077,2]
[367671412,1750891858320,-1000.0,0.00020077,2]
[367671413,1750891858329,-1000.0,0.00020077,2]
[367671414,1750891858339,-1000.0,0.00020077,2]
[367671415,1750891858348,-1000.0,0.00020077,2]
[367671416,1750891858358,-1000.0,0.00020077,2]
[367671417,1750891858367,-1000.0,0.00020077,2]
[367671418,1750891858377,-1000.0,0.00020077,2]
[367671419,1750891858386,-500.0,0.00020077,2]
[367671420,1750891858395,-840.68014058,0.00020077,2]
[367671421,1750891858404,-181.556,0.00020147,2]
[367671422,1750891858414,-587.946484,0.00020187,2]
[367671423,1750891858423,-250.0,0.00020209,2]
[367671424,1750891858432,-543.48,0.00020273,2]
[367671425,1750891858442,-716.39,0.00020273,2]
[367671426,1750891858451,-809.74,0.00020273,2]
[367671427,1750891858460,-1048.8,0.00020273,2]
[367671428,1750891858469,-465.4,0.00020273,2]
[367671429,1750891858479,-460.0,0.00020273,2]
[367671430,1750891858488,-742.19,0.00020273,2]
[367671431,1750891858497,-693.92,0.00020273,2]
[367671432,1750891858507,-771.68,0.00020273,2]
[367671433,1750891858516,-460.0,0.00020273,2]
[367671434,1750891858526,-807.81,0.00020273,2]
[367671435,1750891858535,-711.88,0.00020273,2]
[367671436,1750891858544,-460.0,0.00020273,2]
[367671437,1750891858553,-460.0,0.00020273,2]
[367671438,1750891858563,-613.06,0.00020273,2]
[367671439,1750891858572,-460.0,0.00020273,2]
[367671440,1750891858582,-3085.09,0.00020273,2]
[367671441,1750891858591,-189.71,0.00020273,2]
[367671442,1750891858602,-1930.66,0.00020273,2]
[367671443,1750891858611,-1847.84,0.00020273,2]
[367671444,1750891858620,-1162.98,0.00020273,2]
[367671445,1750891858630,-460.0,0.00020273,2]
[367671446,1750891858639,-856.31,0.00020273,2]
[367671447,1750891858648,-228.0,0.00020322,2]
[367671448,1750891858657,-4000.0,0.00020354,4]
[367671449,1750891858667,-177.4156324,0.00020356,2]
[367671450,1750891858676,-237.3620342,0.00020356,2]
[367671451,1750891858686,-177.4156324,0.00020356,2]
[367671452,1750891858695,-177.4156324,0.00020356,2]
[367671453,1750891858704,-215.0738,0.00020434,2]
[367671454,1750891858714,-507.2504871,0.00020478,2]
[367671455,1750891858723,-228.0,0.00020515,2]
[367671456,1750891858732,-500.0,0.00020547,14]
[367671457,1750891858742,-543.48,0.00020547,2]
[367671458,1750891858751,-716.39,0.00020547,2]
[367671459,1750891858760,-809.74,0.00020547,2]
[367671460,1750891858770,-1048.8,0.00020547,2]
[367671461,1750891858779,-465.4,0.00020547,2]
[367671462,1750891858789,-460.0,0.00020547,2]
[367671463,1750891858799,-742.19,0.00020547,2]
[367671464,1750891858808,-693.92,0.00020547,2]
[367671465,1750891858818,-771.68,0.00020547,2]
[367671466,1750891858827,-460.0,0.00020547,2]
[367671467,1750891858837,-807.81,0.00020547,2]
[367671468,1750891858846,-711.88,0.00020547,2]
[367671469,1750891858857,-460.0,0.00020547,2]
[367671470,1750891858867,-460.0,0.00020547,2]
[367671471,1750891858876,-613.06,0.00020547,2]
[367671472,1750891858886,-460.0,0.00020547,2]
[367671473,1750891858896,-3085.09,0.00020547,2]
[367671474,1750891858912,-1930.66,0.00020547,2]
[367671475,1750891858922,-1847.84,0.00020547,2]
[367671476,1750891858931,-1162.98,0.00020547,2]
[367671477,1750891858940,-460.0,0.00020547,2]
[367671478,1750891858950,-856.31,0.00020547,2]
[367671479,1750891858959,-151.18516,0.00020548,2]
[367671480,1750891858968,-228.0,0.00020568,2]
[367671481,1750891858977,-1500.0,0.00020581,2]
[367671482,1750891858986,-1500.0,0.00020581,2]
[367671483,1750891858994,-1500.0,0.00020581,2]
[367671484,1750891859004,-1500.0,0.00020581,2]
[367671485,1750891859013,-1600.06770585,0.00020581,2]
[367671486,1750891859022,-1500.0,0.00020581,2]
[367671487,1750891859034,-1500.0,0.00020581,2]
[367671488,1750891859043,-1500.0,0.00020581,2]
[367671489,1750891859053,-5095.37,0.000206,2]
[367671490,1750891859062,-151.0,0.000206,2]
[367671491,1750891859073,-151.0,0.000206,2]
[367671492,1750891859082,-154.12063,0.000206,2]
[367671493,1750891859091,-154.12063,0.000206,2]
[367671494,1750891859102,-1000.0,0.00020608,2]
[367671495,1750891859111,-692.76370984,0.00020608,2]
[367671496,1750891859119,-1000.0,0.00020608,2]
[367671497,1750891859128,-1200.0,0.00020608,2]
[367671498,1750891859137,-1500.0,0.00020624,2]
[367671499,1750891859146,-1500.0,0.00020624,2]
[367671500,1750891859155,-1500.0,0.00020624,2]
[367671501,1750891859165,-1500.0,0.00020624,2]
[367671502,1750891859174,-1500.0,0.00020624,2]
[367671503,1750891859183,-1500.0,0.00020624,2]
[367671504,1750891859194,-1500.44571026,0.00020624,2]
[367671505,1750891859203,-1003.74794369,0.00020624,2]
[367671506,1750891859213,-1500.0,0.00020624,2]
[367671507,1750891859222,-495.69823793,0.00020624,2]
[367671508,1750891859231,-1500.0,0.00020624,2]
[367671509,1750891859242,-1547.30818192,0.00020624,2]
[367671510,1750891859251,-1085.33076517,0.00020624,2]
[367671511,1750891859260,-200.0,0.0002065,2]
[367671512,1750891859270,-2000.0,0.000207,2]
[367671513,1750891859282,-228.0,0.00020702,2]
[367671514,1750891859291,-2902.21,0.000208,2]
[367671515,1750891859300,-889.067727,0.00020821,4]
[367671516,1750891859312,-543.48,0.00020821,2]
[367671517,1750891859322,-716.39,0.00020821,2]
[367671518,1750891859332,-809.74,0.00020821,2]
[367671519,1750891859341,-1048.8,0.00020821,2]
[367671520,1750891859351,-465.4,0.00020821,2]
[367671521,1750891859361,-460.0,0.00020821,2]
[367671522,1750891859370,-742.19,0.00020821,2]
[367671523,1750891859379,-693.92,0.00020821,2]
[367671524,1750891859389,-771.68,0.00020821,2]
[367671525,1750891859398,-460.0,0.00020821,2]
[367671526,1750891859408,-151.0,0.00020821,2]
[367671527,1750891859418,-807.81,0.00020821,2]
[367671528,1750891859429,-711.88,0.00020821,2]
[367671529,1750891859439,-460.0,0.00020821,2]
[367671530,1750891859449,-460.0,0.00020821,2]
[367671531,1750891859458,-613.06,0.00020821,2]
[367671532,1750891859468,-460.0,0.00020821,2]
[367671533,1750891859478,-3085.09,0.00020821,2]
[367671534,1750891859488,-1930.66,0.00020821,2]
[367671535,1750891859498,-1847.84,0.00020821,2]
[367671536,1750891859508,-1162.98,0.00020821,2]
[367671537,1750891859518,-856.31,0.00020821,2]
[367671538,1750891859527,-500.0,0.00020958,15]
[367671539,1750891859536,-151.0,0.00020986,2]
[367671540,1750891859545,-151.0,0.00020986,2]
[367671541,1750891859554,-151.0,0.00020986,2]
[367671542,1750891859564,-159.1939926,0.00020986,2]
[367671543,1750891859574,-574.9477627,0.00020986,2]
[367671544,1750891859585,-159.1939926,0.00020986,2]
[367671545,1750891859595,-2000.0,0.00021,2]
[367671546,1750891859605,-151.0,0.00021,2]
[367671547,1750891859615,-160.0,0.00021,2]
[367671548,1750891859626,-500.0,0.00021,2]
[367671549,1750891859635,-500.0,0.00021,2]
[367671550,1750891859647,-10669.97663735,0.0002108,2]
[367671551,1750891859657,-88.12908221,0.0002108,2]
[367671552,1750891859668,-206.99609635,0.0002108,2]
[367671553,1750891859677,-317.0,0.0002108,2]
[367671554,1750891859686,-317.0,0.0002108,2]
[367671555,1750891859696,-317.0,0.0002108,2]
[367671556,1750891859705,-317.0,0.0002108,2]
[367671557,1750891859714,-317.0,0.0002108,2]
[367671558,1750891859723,-317.0,0.0002108,2]
[367671559,1750891859733,-317.0,0.0002108,2]
[367671560,1750891859743,-317.0,0.0002108,2]
[367671561,1750891859752,-317.0,0.0002108,2]
[367671562,1750891859761,-317.0,0.0002108,2]
[367671563,1750891859771,-317.0,0.0002108,2]
[367671564,1750891859780,-317.0,0.0002108,2]
[367671565,1750891859790,-317.0,0.0002108,2]
[367671566,1750891859799,-317.0,0.0002108,2]
[367671567,1750891859809,-317.0,0.0002108,2]
[367671568,1750891859818,-317.0,0.0002108,2]
[367671569,1750891859827,-317.0,0.0002108,2]
[367671570,1750891859836,-1749.0,0.0002108,2]
[367671571,1750891859846,-1749.0,0.0002108,2]
[367671572,1750891859856,-166.0,0.0002108,2]
[367671573,1750891859865,-166.0,0.0002108,2]
[367671574,1750891859874,-1749.0,0.0002108,2]
[367671575,1750891859883,-172.0,0.0002108,2]
[367671576,1750891859892,-1749.0,0.0002108,2]
[367671577,1750891859902,-1749.0,0.0002108,2]
[367671578,1750891859911,-1749.0,0.0002108,2]
[367671579,1750891859921,-1749.0,0.0002108,2]
[367671580,1750891859930,-1749.0,0.0002108,2]
[367671581,1750891859939,-200.9870345,0.0002108,2]
[367671582,1750891859948,-153.0,0.0002108,2]
[367671583,1750891859957,-1749.0,0.0002108,2]
[367671584,1750891859966,-153.0,0.0002108,2]
[367671585,1750891859976,-1749.0,0.0002108,2]
[367671586,1750891859985,-153.0,0.0002108,2]
[367671587,1750891859995,-1749.0,0.0002108,2]
[367671588,1750891860003,-153.0,0.0002108,2]
[367671589,1750891860012,-1749.0,0.0002108,2]
[367671590,1750891860023,-153.0,0.0002108,2]
[367671591,1750891860032,-1749.0,0.0002108,2]
[367671592,1750891860041,-153.0,0.0002108,2]
[367671593,1750891860051,-1749.0,0.0002108,2]
[367671594,1750891860060,-153.0,0.0002108,2]
[367671595,1750891860070,-1749.0,0.0002108,2]
[367671596,1750891860079,-153.0,0.0002108,2]
[367671597,1750891860089,-1749.0,0.0002108,2]
[367671598,1750891860098,-153.0,0.0002108,2]
[367671599,1750891860108,-1749.0,0.0002108,2]
[367671600,1750891860117,-1749.0,0.0002108,2]
[367671601,1750891860127,-153.0,0.0002108,2]
[367671602,1750891860136,-1749.0,0.0002108,2]
[367671603,1750891860145,-163.45778204,0.0002108,2]
[367671604,1750891860155,-1749.0,0.0002108,2]
[367671605,1750891860164,-1749.0,0.0002108,2]
[367671606,1750891860173,-1749.0,0.0002108,2]
[367671607,1750891860182,-1749.0,0.0002108,2]
[367671608,1750891860191,-1749.0,0.0002108,2]
[367671609,1750891860200,-1749.0,0.0002108,2]
[367671610,1750891860210,-1749.0,0.0002108,2]
[367671611,1750891860219,-1749.0,0.0002108,2]
[367671612,1750891860228,-1749.0,0.0002108,2]
[367671613,1750891860238,-1749.0,0.0002108,2]
[367671614,1750891860247,-317.0,0.0002108,2]
[367671615,1750891860256,-317.0,0.0002108,2]
[367671616,1750891860265,-317.0,0.0002108,2]
[367671617,1750891860274,-174.49437035,0.0002108,2]
[367671618,1750891860283,-156.537637,0.0002108,2]
[367671619,1750891860292,-151.0,0.0002108,2]
[367671620,1750891860302,-156.537637,0.0002108,2]
[367671621,1750891860311,-500.0,0.00021082,2]
[367671622,1750891860320,-500.0,0.00021082,2]
[367671623,1750891860329,-3000.0,0.0002109,2]
[367671624,1750891860338,-1303.11,0.0002109,2]
[367671625,1750891860347,-543.48,0.00021095,2]
[367671626,1750891860357,-716.39,0.00021095,2]
[367671627,1750891860366,-809.74,0.00021095,2]
[367671628,1750891860375,-1048.8,0.00021095,2]
[367671629,1750891860384,-465.4,0.00021095,2]
[367671630,1750891860394,-460.0,0.00021095,2]
[367671631,1750891860403,-742.19,0.00021095,2]
[367671632,1750891860414,-693.92,0.00021095,2]
[367671633,1750891860424,-771.68,0.00021095,2]
[367671634,1750891860434,-460.0,0.00021095,2]
[367671635,1750891860443,-807.81,0.00021095,2]
[367671636,1750891860453,-711.88,0.00021095,2]
[367671637,1750891860462,-548.12108148,0.00021095,2]
[367671638,1750891860471,-460.0,0.00021095,2]
[367671639,1750891860480,-613.06,0.00021095,2]
[367671640,1750891860490,-277.23,0.00021095,2]
[367671641,1750891860499,-3085.09,0.00021095,2]
[367671642,1750891860510,-1930.66,0.00021095,2]
[367671643,1750891860519,-1847.84,0.00021095,2]
[367671644,1750891860528,-1162.98,0.00021095,2]
[367671645,1750891860537,-856.31,0.00021095,2]
[367671646,1750891860547,-3000.0,0.000211,2]
[367671647,1750891860556,-958.0,0.00021101,2]
[367671648,1750891860565,-151.0,0.00021101,2]
[367671649,1750891860574,-151.0,0.00021101,2]
[367671650,1750891860584,-990.716068,0.00021101,2]
[367671651,1750891860593,-990.716068,0.00021101,2]
[367671652,1750891860604,-3000.0,0.0002111,2]
[367671653,1750891860719,-273.097111,0.0002111,2]
[367671654,1750891860729,-151.0,0.0002111,2]
[367671655,1750891860739,-151.0,0.0002111,2]
[367671656,1750891860748,-151.0,0.0002111,2]
[367671657,1750891860758,-228.0,0.00021111,2]
[367671658,1750891860769,-3000.0,0.0002112,2]
[367671659,1750891860779,-2000.0,0.00021128,2]
[367671660,1750891860789,-1179.58554997,0.00021128,2]
[367671661,1750891860798,-2000.0,0.00021128,2]
[367671662,1750891860808,-2106.865118,0.00021128,2]
[367671663,1750891860818,-2000.0,0.00021128,2]
[367671664,1750891860827,-2000.0,0.00021128,2]
[367671665,1750891860836,-2000.0,0.00021128,2]
[367671666,1750891860846,-3000.0,0.0002113,2]
[367671667,1750891860858,-3000.0,0.0002114,2]
[367671668,1750891860867,-3000.0,0.0002115,2]
[367671669,1750891860876,-223.453961,0.0002115,2]
[367671670,1750891860886,-223.453961,0.0002115,2]
[367671671,1750891860896,-151.0,0.0002115,2]
[367671672,1750891860906,-151.0,0.0002115,2]
[367671673,1750891860915,-1649.49804868,0.00021156,2]
[367671674,1750891860925,-1500.0,0.00021156,2]
[367671675,1750891860936,-1800.0,0.00021156,2]
[367671676,1750891860945,-3000.0,0.0002116,2]
[367671677,1750891860955,-823.0,0.00021166,2]
[367671678,1750891860964,-3000.0,0.0002117,2]
[367671679,1750891860974,-44938.82558091,0.00021172,2]
[367671680,1750891860985,-1071.10072424,0.00021172,2]
[367671681,1750891860994,-2100.75623165,0.00021172,2]
[367671682,1750891861003,-2000.0,0.00021172,2]
[367671683,1750891861013,-2000.0,0.00021172,2]
[367671684,1750891861025,-2000.0,0.00021172,2]
[367671685,1750891861035,-2000.0,0.00021172,2]
[367671686,1750891861045,-191.32548711,0.00021172,2]
[367671687,1750891861055,-152.62633796,0.00021172,2]
[367671688,1750891861064,-3000.0,0.0002118,2]
[367671689,1750891861074,-3000.0,0.0002119,2]
[367671690,1750891861083,-151.0,0.0002119,2]
[367671691,1750891861092,-1303.11,0.0002119,2]
[367671692,1750891861104,-65000.0,0.000212,5]
[367671693,1750891861113,-3000.0,0.000212,2]
[367671694,1750891861122,-151.0,0.000212,2]
[367671695,1750891861132,-273.863253,0.000212,2]
[367671696,1750891861141,-151.0,0.000212,2]
[367671697,1750891861151,-151.0,0.000212,2]
[367671698,1750891861160,-151.0,0.000212,2]
[367671699,1750891861170,-151.0,0.000212,2]
[367671700,1750891861179,-151.0,0.000212,2]
[367671701,1750891861189,-208.2835,0.000212,2]
[367671702,1750891861198,-208.2835,0.000212,2]
[367671703,1750891861207,-151.0,0.000212,2]
[367671704,1750891861216,-151.0,0.000212,2]
[367671705,1750891861226,-225.724008,0.000212,2]
[367671706,1750891861235,-151.0,0.000212,2]
[367671707,1750891861247,-151.0,0.000212,2]
[367671708,1750891861256,-151.0,0.000212,2]
[367671709,1750891861265,-151.0,0.000212,2]
[367671710,1750891861275,-151.0,0.000212,2]
[367671711,1750891861286,-151.0,0.000212,2]
[367671712,1750891861297,-151.0,0.000212,2]
[367671713,1750891861307,-154.12063,0.000212,2]
[367671714,1750891861319,-154.12063,0.000212,2]
[367671715,1750891861329,-640.0,0.000212,2]
[367671716,1750891861339,-156.537637,0.000212,2]
[367671717,1750891861347,-151.0,0.000212,2]
[367671718,1750891861358,-156.537637,0.000212,2]
[367671719,1750891861368,-3000.0,0.0002121,2]
[367671720,1750891861377,-3000.0,0.0002122,2]
[367671721,1750891861386,-3000.0,0.0002123,2]
[367671722,1750891861395,-958.0,0.00021233,2]
[367671723,1750891861404,-3000.0,0.0002124,2]
[367671724,1750891861414,-3000.0,0.0002125,2]
[367671725,1750891861423,-3000.0,0.0002126,2]
[367671726,1750891861433,-3000.0,0.0002127,2]
[367671727,1750891861443,-3000.0,0.0002128,2]
[367671728,1750891861453,-3000.0,0.0002129,2]
[367671729,1750891861462,-1303.11,0.0002129,2]
[367671730,1750891861471,-3000.0,0.000213,2]
[367671731,1750891861481,-3000.0,0.0002131,2]
[367671732,1750891861491,-3000.0,0.0002132,2]
[367671733,1750891861500,-3000.0,0.0002133,2]
[367671734,1750891861509,-151.0,0.0002133,2]
[367671735,1750891861518,-151.0,0.0002133,2]
[367671736,1750891861528,-3000.0,0.0002134,2]
[367671737,1750891861537,-3000.0,0.0002135,2]
[367671738,1750891861546,-3000.0,0.0002136,2]
[367671739,1750891861557,-500.0,0.00021369,16]
[367671740,1750891861566,-543.48,0.00021369,2]
[367671741,1750891861575,-716.39,0.00021369,2]
[367671742,1750891861585,-809.74,0.00021369,2]
[367671743,1750891861596,-300.595242,0.00021369,2]
[367671744,1750891861607,-1048.8,0.00021369,2]
[367671745,1750891861616,-151.0,0.00021369,2]
[367671746,1750891861626,-465.4,0.00021369,2]
[367671747,1750891861636,-292.1,0.00021369,2]
[367671748,1750891861646,-990.716068,0.00021369,2]
[367671749,1750891861656,-990.716068,0.00021369,2]
[367671750,1750891861666,-742.19,0.00021369,2]
[367671751,1750891861676,-693.92,0.00021369,2]
[367671752,1750891861686,-771.68,0.00021369,2]
[367671753,1750891861695,-419.79454373,0.00021369,2]
[367671754,1750891861705,-807.81,0.00021369,2]
[367671755,1750891861714,-711.88,0.00021369,2]
[367671756,1750891861724,-460.0,0.00021369,2]
[367671757,1750891861733,-613.06,0.00021369,2]
[367671758,1750891861743,-3085.09,0.00021369,2]
[367671759,1750891861753,-1930.66,0.00021369,2]
[367671760,1750891861762,-1847.84,0.00021369,2]
[367671761,1750891861772,-1162.98,0.00021369,2]
[367671762,1750891861782,-856.31,0.00021369,2]
[367671763,1750891861791,-500.0,0.0002137,2]
[367671764,1750891861801,-3000.0,0.0002137,2]
[367671765,1750891861811,-223.453961,0.0002137,2]
[367671766,1750891861820,-223.453961,0.0002137,2]
[367671767,1750891861829,-151.0,0.0002137,2]
[367671768,1750891861838,-151.0,0.0002137,2]
[367671769,1750891861847,-3000.0,0.0002138,2]
[367671770,1750891861857,-500.0,0.00021385,2]
[367671771,1750891861866,-500.0,0.00021385,2]
[367671772,1750891861875,-3000.0,0.0002139,2]
[367671773,1750891861884,-1303.11,0.0002139,2]
[367671774,1750891861894,-3000.0,0.000214,2]
[367671775,1750891861903,-3000.0,0.0002141,2]
[367671776,1750891861912,-3000.0,0.0002142,2]
[367671777,1750891861921,-2632.01628362,0.0002143,2]
[367671778,1750891862089,-367.98371638,0.0002143,2]
[367671779,1750891862099,-152.006539,0.0002143,2]
[367671780,1750891862110,-151.0,0.0002143,2]
[367671781,1750891862119,-151.0,0.0002143,2]
[367671782,1750891862128,-3513.201139,0.0002144,2]
[367671783,1750891862138,-1303.11,0.0002149,2]
[367671784,1750891862147,-5095.37,0.000215,2]
[367671785,1750891862156,-159.1939926,0.00021507,2]
[367671786,1750891862165,-1410.75186752,0.00021524,5]
[367671787,1750891862335,-460.0,0.00016438,2]
[367671788,1750891862345,-460.0,0.00016438,2]
[367671789,1750891862354,-596.62307046,0.00016438,2]
[367671790,1750891862364,-460.0,0.00016438,2]
[367671791,1750891862373,-138.37692954,0.00016712,2]
[367671792,1750891862385,-323.10241158,0.00016712,2]
[367671793,1750891862395,-474.88,0.00016986,2]
[367671794,1750891862404,-13.4888267,0.0001726,2]
[367671795,1750891862416,-461.3911733,0.0001726,2]
[367671796,1750891862425,-474.88,0.00017534,2]
[367671797,1750891862435,-474.88,0.00017808,2]
[367671798,1750891862444,-120.30157764,0.00018082,2]
[367671799,1750891862455,-354.57842236,0.00018082,2]
[367671800,1750891862465,-474.88,0.00018356,2]
[367671801,1750891862475,-81.62337539,0.0001863,2]
[367671802,1750891862486,-511.85662461,0.0001863,2]
[367671803,1750891862495,-474.88,0.0001863,2]
[367671804,1750891862505,-500.0,0.00019506,2]
[367671805,1750891862514,-460.0,0.00020821,2]
[367671806,1750891862524,-460.0,0.00021095,2]
[367671807,1750891862533,-38.26337539,0.00021369,2]
[367671808,1750891862913,-1403.89628788,0.00016338,2]
[367671809,1750891862923,-460.0,0.00016438,2]
[367671810,1750891862932,-22.33293558,0.00016438,2]
[367671811,1750891863048,-254.77268796,0.00016438,2]
[367671812,1750891863061,-183.43609422,0.00016438,2]
[367671813,1750891863071,-460.0,0.00016438,2]
[367671814,1750891863081,-460.0,0.00016438,2]
[367671815,1750891863091,-460.0,0.00016438,2]
[367671816,1750891863100,-15.16390578,0.00016438,2]
[367671817,1750891863113,-444.83609422,0.00016438,2]
[367671818,1750891863123,-460.0,0.00016712,2]
[367671819,1750891863134,-460.0,0.00016712,2]
[367671820,1750891863143,-460.0,0.00016712,2]
[367671821,1750891863153,-438.77947997,0.00016712,2]
[367671822,1750891863163,-460.0,0.00016712,2]
[367671823,1750891863172,-1101.52466879,0.00016886,2]
[367671830,1750892088668,316.6801563,0.00025161,120]
[367671831,1750892292403,19722.56813353,0.0001569,2]
[367671832,1750892292427,5177.43186647,0.0001569,2]
[367671835,1750892747739,-300.0,0.00016437,2]
[367671836,1750892747762,-1200.0,0.00016437,2]
[367671837,1750892747784,-460.0,0.00016438,2]
[367671838,1750892747806,-460.0,0.00016438,2]
[367671839,1750892747828,-460.0,0.00016438,2]
[367671840,1750892747851,-460.0,0.00016438,2]
[367671841,1750892747873,-297.41345971,0.00016438,2]
[367671842,1750892747893,-404.87389195,0.00016438,2]
[367671843,1750892747913,-460.0,0.00016438,2]
[367671844,1750892747934,-460.53266509,0.00016438,2]
[367671845,1750892747957,-460.0,0.00016438,2]
[367671846,1750892747978,-460.0,0.00016438,2]
[367671847,1750892747999,-460.0,0.00016438,2]
[367671848,1750892748021,-460.0,0.00016438,2]
[367671849,1750892748043,-460.0,0.00016438,2]
[367671850,1750892748064,-460.0,0.00016438,2]
[367671851,1750892748086,-315.77731311,0.00016438,2]
[367671852,1750892748111,-462.02808683,0.00016438,2]
[367671853,1750892748133,-460.0,0.00016438,2]
[367671854,1750892748155,-460.0,0.00016438,2]
[367671855,1750892748175,-300.0,0.00016438,2]
[367671856,1750892748196,-405.41225469,0.00016438,2]
[367671857,1750892748217,-460.0,0.00016438,2]
[367671858,1750892748238,-461.41841856,0.00016438,2]
[367671859,1750892748259,-460.0,0.00016438,2]
[367671860,1750892748280,-460.0,0.00016438,2]
[367671861,1750892748300,-32.54391006,0.00016438,2]
[367671863,1750892895784,558.54916,0.00013699,2]
[367671918,1750893032355,-1376.01,0.00016428,3]
[367671920,1750893032366,-14.78166477,0.00016428,3]
[367672045,1750893038304,-282.29292977,0.00016428,3]
[367672046,1750893038315,-446.48540546,0.00016428,3]
[367672047,1750893038324,-371.78,0.00016428,3]
[367672048,1750893038333,-185.89,0.00016428,3]
[367672049,1750893038343,-500.0,0.00016437,2]
[367672051,1750893038353,-261.47228677,0.00016437,2]
[367672054,1750893038362,-200.8150538,0.00016437,2]
[367672056,1750893038379,-299.1849462,0.00016437,2]
[367672057,1750893038387,-206.33130457,0.00016437,2]
[367672058,1750893038397,-1200.0,0.00016437,2]
[367672059,1750893038407,-538.99832071,0.00016437,2]
[367672060,1750893038416,-500.0,0.00016437,2]
[367672061,1750893038425,-500.0,0.00016437,2]
[367672062,1750893038434,-460.09948902,0.00016437,2]
[367672063,1750893038444,-460.0,0.00016438,2]
[367672064,1750893038453,-470.0,0.00016438,2]
[367672065,1750893038463,-460.0,0.00016438,2]
[367672066,1750893038473,-460.0,0.00016438,2]
[367672067,1750893038482,-313.48931798,0.00016438,2]
[367672068,1750893038491,-460.0,0.00016438,2]
[367672069,1750893038500,-460.83205486,0.00016438,2]
[367672070,1750893038509,-460.0,0.00016438,2]
[367672071,1750893038519,-460.0,0.00016438,2]
[367672072,1750893038528,-460.0,0.00016438,2]
[367672073,1750893038537,-460.32237208,0.00016438,2]
[367672074,1750893038546,-460.0,0.00016438,2]
[367672075,1750893038555,-460.0,0.00016438,2]
[367672076,1750893038565,-460.0,0.00016438,2]
[367672077,1750893038574,-460.0,0.00016438,2]
[367672078,1750893038584,-460.0,0.00016438,2]
[367672079,1750893038593,-460.0,0.00016438,2]
[367672080,1750893038602,-460.0,0.00016438,2]
[367672081,1750893038611,-460.0,0.00016438,2]
[367672082,1750893038620,-460.0,0.00016438,2]
[367672083,1750893038630,-460.0,0.00016438,2]
[367672084,1750893038639,-460.0,0.00016438,2]
[367672085,1750893038649,-460.0,0.00016438,2]
[367672086,1750893038659,-460.0,0.00016438,2]
[367672087,1750893038668,-460.0,0.00016438,2]
[367672088,1750893038677,-601.81174642,0.00016438,2]
[367672089,1750893038686,-370.05226474,0.00016438,2]